fUSD/lending_fUSD_20241112
["ID","MTS","AMOUNT","RATE_DAILY","PERIOD"]
[342079178,1731413442782,-84639.96252054,0.00013,2]
[342079179,1731413442793,-21621.97479953,0.00013,2]
[342079180,1731413442837,-4741.21586101,0.00013,2]
[342079183,1731413442848,-4930.12198501,0.00013,2]
[342079185,1731413442864,-2784.9748011,0.00013,2]
[342079187,1731413442875,-8636.43824233,0.00013,2]
[342079189,1731413442886,-1686.37151096,0.00013,2]
[342079234,1731413445430,-14179.66991624,0.00012758,2]
[342079235,1731413445540,-9720.33008376,0.00012758,2]
[342079236,1731413445549,-52539.29181626,0.00013,2]
[342079237,1731413445650,-560.30358462,0.00013,2]
[342079238,1731413445661,-677.99999947,0.00013,2]
[342079239,1731413445672,-875.52,0.00013,2]
[342079240,1731413445683,-1754.85933591,0.00013,2]
[342079241,1731413445693,-590.12952901,0.00013,2]
[342079242,1731413445719,-84351.45990322,0.00013,2]
[342079243,1731413445731,-704.78922278,0.00013,2]
[342079244,1731413445742,-309.95317623,0.00013,2]
[342079245,1731413464132,800.0,0.00026986,120]
[342079248,1731413572350,1567.73,0.00010706,2]
[342079251,1731413798972,867.78,0.00012274,2]
[342079252,1731413810540,155.43,0.00012274,2]
[342079253,1731413840064,250.0,0.00012302,2]
[342079255,1731413894614,1303.87,0.00022137,30]
[342079257,1731413942781,3067.521,0.00027,60]
[342079258,1731413990173,250.0,0.00012278,2]
[342079260,1731414143499,1000.0,0.00012267,2]
[342079261,1731414189301,179.98,8.219e-05,2]
[342079263,1731414220204,166.2,0.00012188,2]
[342079264,1731414261005,1489.34,0.0001025,2]
[342079266,1731414297985,160.05,0.00012117,2]
[342079267,1731414300770,170.11,0.00012141,2]
[342079269,1731414356745,5801.74918799,6.94e-05,2]
[342079270,1731414363890,161.89906437,9e-05,2]
[342079271,1731414441799,205.0,9.8e-05,2]
[342079272,1731414475871,200.0,0.00012138,2]
[342079273,1731414498788,433.89,0.00012182,2]
[342079289,1731414521069,212.88426028,0.0001,2]
[342079290,1731414524626,537.11573972,0.0001,2]
[342079314,1731414631610,-150.0,0.00012321,2]
[342079315,1731414631620,-155.43,0.00012335,2]
[342079316,1731414631630,-237.2207251,0.00012361,2]
[342079317,1731414631727,-18209.2792749,0.00012361,2]
[342079318,1731414631737,-191.75,0.00012361,2]
[342079319,1731414631750,-150.0,0.00012371,2]
[342079320,1731414631760,-3061.34595944,0.00012371,2]
[342079321,1731414631769,-150.0,0.00012499,2]
[342079322,1731414631778,-7683.9654,0.000125,2]
[342079323,1731414631788,-237.8491,0.000125,2]
[342079324,1731414631797,-1489.34,0.00012514,2]
[342079325,1731414631807,-435.87,0.00012583,2]
[342079326,1731414631816,-161.99,0.00012758,2]
[342079327,1731414631826,-392.87943249,0.00012849,2]
[342079328,1731414631835,-1283.529,0.0001287,2]
[342079329,1731414631844,-179.735,0.00012873,2]
[342079330,1731414631853,-200.0,0.000129,2]
[342079331,1731414631862,-168.13,0.000129,2]
[342079332,1731414631872,-293.3,0.000129,2]
[342079333,1731414631881,-760.3732,0.000129,2]
[342079334,1731414631890,-160.05,0.00012925,2]
[342079335,1731414631900,-500.0,0.00012973,2]
[342079336,1731414631910,-45694.2486336,0.0001299,2]
[342079337,1731414631927,-1310.43,0.0001299,2]
[342079338,1731414634990,-2761.895675,0.0001299,2]
[342079339,1731414635050,-928.7175,0.0001299,2]
[342079340,1731414635063,-9978.78511074,0.0001299,2]
[342079341,1731414635076,-1603.2,0.0001299,2]
[342079349,1731414637674,-1393802.09188333,0.0001299,2]
[342079350,1731414637797,-4194.507427,0.0001299,2]
[342079351,1731414637866,-956.5451304,0.0001299,2]
[342079352,1731414637913,-2893.54358941,0.0001299,2]
[342079353,1731414637924,-2492.88880245,0.0001299,2]
[342079354,1731414637936,-66552.0345496,0.0001299,2]
[342079355,1731414637971,-3441.44860782,0.0001299,2]
[342079372,1731414639734,-16446.0,0.0001299,2]
[342079373,1731414639751,-423.39534478,0.0001299,2]
[342079374,1731414639820,-799.5782332,0.0001299,2]
[342079375,1731414639831,-1728.77262585,0.0001299,2]
[342079376,1731414639842,-1925.36,0.0001299,2]
[342079380,1731414642684,-200.0,0.000129,2]
[342079381,1731414642693,-87496.44038971,0.0001299,2]
[342079382,1731414642705,-3796.04085098,0.0001299,2]
[342079383,1731414642753,-870.35,0.0001299,2]
[342079384,1731414642764,-20751.59144768,0.0001299,2]
[342079385,1731414642773,-17424.60855232,0.00012999,2]
[342079386,1731414642785,-5450.80681456,0.00012999,2]
[342079387,1731414642797,-4164.67576544,0.00012999,2]
[342079388,1731414642807,-1323.17219622,0.00012999,2]
[342079389,1731414642819,-3118.1311699,0.00012999,2]
[342079390,1731414642831,-3491.44959459,0.00012999,2]
[342079391,1731414642843,-25931.56908261,0.00012999,2]
[342079392,1731414642852,-1000.0,0.00012999,2]
[342079393,1731414642862,-133104.43091739,0.00013,2]
[342079394,1731414642979,-282.1400005,0.00013,2]
[342079395,1731414642990,-484.9450015,0.00013,2]
[342079396,1731414643032,-2080.83082178,0.00013,2]
[342079397,1731414643043,-2814.73211419,0.00013,2]
[342079398,1731414643054,-1259.4236756,0.00013,2]
[342079399,1731414643064,-18532.13765379,0.00013,2]
[342079426,1731414645552,-500.0,0.00012999,2]
[342079428,1731414645562,-11.9388078,0.00012999,2]
[342079435,1731414645612,-421.1013188,0.00012999,2]
[342079437,1731414645622,-500.0,0.00012999,2]
[342079438,1731414645631,-500.0,0.00012999,2]
[342079441,1731414645641,-86352.85664156,0.00013,2]
[342079443,1731414645653,-2973.0,0.00013,2]
[342079446,1731414645728,-6683.78185615,0.00013,2]
[342079447,1731414645740,-1099.52110205,0.00013,2]
[342079448,1731414645755,-1427.32331707,0.00013,2]
[342079449,1731414645768,-3382.6629644,0.00013,2]
[342079450,1731414645780,-1133.63256697,0.00013,2]
[342079451,1731414645791,-1791.69594206,0.00013,2]
[342079452,1731414645811,-4354.95,0.00013,2]
[342079453,1731414645856,-41286.46149866,0.00013,2]
[342079454,1731414645918,-726.00003619,0.00013,2]
[342079455,1731414645980,-10777.99451361,0.00013,2]
[342079458,1731414645992,-21061.45324298,0.00013,2]
[342079708,1731414667679,600.0,0.00012,4]
[342079709,1731414669835,1300.0,0.000121,4]
[342079710,1731414672156,2000.0,0.000122,4]
[342079711,1731414674153,2600.0,0.000123,4]
[342079712,1731414713946,1238.67,0.00022137,30]
[342079713,1731414737998,-3300.0,0.000124,4]
[342079714,1731414738021,-600.0,0.000125,4]
[342079715,1731414738047,-600.0,0.000126,4]
[342079716,1731414738072,-600.0,0.000127,4]
[342079717,1731414738098,-600.0,0.000128,4]
[342079718,1731414738122,-1250.0,0.000129,4]
[342079719,1731414749989,150.0,0.00012147,2]
[342079720,1731414928203,200.0,0.0002388,30]
[342079721,1731414928260,200.0,0.0002388,30]
[342079722,1731414928330,200.0,0.0002388,30]
[342079723,1731414928371,200.0,0.0002388,30]
[342079724,1731414928445,200.0,0.0002388,30]
[342079725,1731414942885,179.98,8.219e-05,2]
[342079726,1731415054342,200.0,0.00023761,30]
[342079727,1731415054403,200.0,0.00023761,30]
[342079728,1731415054458,200.0,0.00023761,30]
[342079729,1731415054488,200.0,0.00023761,30]
[342079730,1731415054564,200.0,0.00023761,30]
[342079731,1731415093720,232.05,0.00012274,2]
[342079733,1731415164059,1445.03,0.00010119,2]
[342079734,1731415181616,200.0,0.00023642,30]
[342079735,1731415181671,200.0,0.00023642,30]
[342079736,1731415181740,200.0,0.00023642,30]
[342079737,1731415181804,200.0,0.00023642,30]
[342079738,1731415181842,200.0,0.00023642,30]
[342079739,1731415195145,482.02,0.00011924,2]
[342079741,1731415256129,663.91,0.00011917,2]
[342079743,1731415308280,200.0,0.00023524,30]
[342079744,1731415308329,200.0,0.00023524,30]
[342079745,1731415308413,200.0,0.00023524,30]
[342079746,1731415308560,200.0,0.00023524,30]
[342079747,1731415308591,200.0,0.00023524,30]
[342079748,1731415397288,1176.73,0.00022137,30]
[342079749,1731415400257,19678.03610608,0.000235,30]
[342079750,1731415457090,250.0,0.00011908,2]
[342079752,1731415494578,150.0,0.00011902,2]
[342079753,1731415498086,23900.0,0.00011902,2]
[342079755,1731415573152,-165.48,0.00012382,2]
[342079756,1731415573185,-1445.03,0.00012383,2]
[342079757,1731415573215,-1000.0,0.00012423,2]
[342079758,1731415573245,-150.0,0.00012477,2]
[342079759,1731415573279,-250.0,0.00012534,2]
[342079760,1731415573309,-6744.82878175,0.00012534,2]
[342079761,1731415573341,-150.0,0.00012603,2]
[342079762,1731415573372,-3376.0,0.00012614,2]
[342079763,1731415573400,-426.36555989,0.00012723,2]
[342079764,1731415573432,-23292.29565836,0.00012756,2]
[342079765,1731415576232,1239.0346,0.00012283,2]
[342079766,1731415671690,2474.06,0.00012276,2]
[342079767,1731415675618,2000.0,0.00012244,2]
[342079768,1731415693420,150.0,0.0001217,2]
[342079771,1731415715580,3876.31,0.00012153,2]
[342079772,1731415716184,166.2,0.00012153,2]
[342079779,1731415800216,1000.0,0.00011946,2]
[342079780,1731415810251,200.0,0.00011874,30]
[342079781,1731415810299,200.0,0.00011874,30]
[342079782,1731415810365,200.0,0.00011874,30]
[342079783,1731415810420,200.0,0.00011874,30]
[342079784,1731415810469,200.0,0.00011874,30]
[342079785,1731415813426,414.57,0.00011961,2]
[342079790,1731415831787,-222.66,0.00012313,2]
[342079791,1731415831796,-250.0,0.00012355,2]
[342079792,1731415831806,-300.0,0.00012487,2]
[342079793,1731415831815,-14469.0,0.00012488,2]
[342079794,1731415831825,-414.57,0.00012559,2]
[342079795,1731415831834,-754.21374647,0.00012756,2]
[342079796,1731415831843,-5994.3158,0.0001279,2]
[342079797,1731415831853,-2017.9943,0.0001279,2]
[342079798,1731415831866,-1939.0087946,0.000128,2]
[342079799,1731415831876,-4323.30432824,0.000128,2]
[342079800,1731415831885,-4323.30432816,0.00012811,2]
[342079801,1731415831894,-4323.30432816,0.00012822,2]
[342079802,1731415831904,-4323.30432816,0.00012833,2]
[342079805,1731415832098,-463.54,0.00012833,2]
[342079809,1731415832121,-26688.14,0.00012833,2]
[342079811,1731415832131,-373.69,0.00012833,2]
[342079813,1731415832141,-150.99,0.00012833,2]
[342079814,1731415832150,-1103.27,0.00012833,2]
[342079816,1731415832160,-999.99,0.00012833,2]
[342079818,1731415832169,-409.5,0.00012833,2]
[342079820,1731415832179,-4188.57890599,0.00012844,2]
[342079821,1731415832191,-134.72542217,0.00012844,2]
[342079822,1731415832200,-1315.28741787,0.00012856,2]
[342079823,1731415832211,-829.574325,0.00012856,2]
[342079824,1731415832244,-2178.44258529,0.00012856,2]
[342079825,1731415832253,-4323.30432816,0.00012867,2]
[342079826,1731415832262,-150.0,0.00012869,2]
[342079827,1731415832271,-150.99,0.00012869,2]
[342079828,1731415832280,-1727.45,0.0001287,2]
[342079830,1731415832289,-299.99,0.0001287,2]
[342079832,1731415832298,-4323.30432816,0.00012878,2]
[342079833,1731415832308,-1334.9707281,0.0001288,2]
[342079834,1731415832319,-4323.30432816,0.00012889,2]
[342079835,1731415832329,-1276.334,0.00012889,2]
[342079836,1731415832343,-176.104,0.00012889,2]
[342079837,1731415832353,-49233.436,0.0001289,2]
[342079838,1731415832364,-8882.6098,0.0001289,2]
[342079839,1731415832374,-3957.2819,0.0001289,2]
[342079840,1731415832385,-1000.0,0.0001289,2]
[342079841,1731415832395,-6474.8371,0.0001289,2]
[342079842,1731415832404,-4815.5078,0.00012898,2]
[342079843,1731415832415,-2635.4684,0.00012898,2]
[342079844,1731415832424,-1582.3201,0.00012898,2]
[342079845,1731415832433,-2500.0,0.00012898,2]
[342079846,1731415832442,-3706.71328213,0.000129,2]
[342079847,1731415832453,-5171.47296687,0.000129,2]
[342079848,1731415832463,-200.0,0.000129,2]
[342079849,1731415832472,-302.3,0.000129,2]
[342079850,1731415832482,-150.0,0.000129,2]
[342079851,1731415832491,-150.0,0.000129,2]
[342079852,1731415832501,-150.0,0.000129,2]
[342079853,1731415832510,-1000.0,0.000129,2]
[342079854,1731415832520,-5000.0,0.000129,2]
[342079855,1731415832534,-1018.62458924,0.000129,2]
[342079856,1731415832555,-183.9712974,0.000129,2]
[342079857,1731415832566,-2465.30631004,0.000129,2]
[342079858,1731415832575,-845.07637007,0.000129,2]
[342079859,1731415832585,-4323.30432816,0.000129,2]
[342079860,1731415832594,-5338.73460486,0.000129,2]
[342079861,1731415832603,-413.95305835,0.00012973,2]
[342079862,1731415832615,-500.0,0.00012973,2]
[342079863,1731415832625,-500.0,0.00012973,2]
[342079864,1731415832635,-500.0,0.00012973,2]
[342079865,1731415832644,-500.0,0.00012973,2]
[342079866,1731415832654,-500.43514332,0.00012973,2]
[342079867,1731415832663,-6572.8163926,0.00012989,2]
[342079868,1731415832673,-2037.9347059,0.00012989,2]
[342079869,1731415832683,-7176.07018319,0.00012998,2]
[342079870,1731415832694,-1334.9707281,0.00012998,2]
[342079871,1731415832706,-260.9607,0.00012998,2]
[342079872,1731415832734,-7607.599999,0.00012998,2]
[342079873,1731415832746,-40858.40935281,0.00012998,2]
[342079874,1731415832759,-1488.3561559,0.00012998,2]
[342079875,1731415832769,-500.0,0.00012999,2]
[342079876,1731415832778,-500.0,0.00012999,2]
[342079877,1731415832788,-226.85806142,0.00012999,2]
[342079878,1731415832797,-188.52274573,0.00012999,2]
[342079879,1731415832806,-500.0,0.00012999,2]
[342079880,1731415832815,-264.44044177,0.00012999,2]
[342079881,1731415832825,-158431.82259518,0.00013,2]
[342079882,1731415832836,-11549.31675898,0.00013,2]
[342079883,1731415832847,-20643.89074801,0.00013,2]
[342079884,1731415832861,-504766.87935199,0.00013,2]
[342079885,1731415832963,-3607.98663513,0.00013,2]
[342079886,1731415832975,-4330.0,0.00013,2]
[342079888,1731415837753,-200.0,0.000129,2]
[342079889,1731415837765,-51.18267838,0.00013,2]
[342079890,1731415837778,-397.165,0.00013,2]
[342079891,1731415837818,-4666.06998667,0.00013,2]
[342079892,1731415837829,-2611.67650954,0.00013,2]
[342079893,1731415837841,-1207.08810144,0.00013,2]
[342079894,1731415837853,-3186.44994004,0.00013,2]
[342079895,1731415837867,-17843.0001677,0.00013,2]
[342079896,1731415837878,-16045.64733487,0.00013,2]
[342079897,1731415837923,-351.47061829,0.00013,2]
[342079898,1731415837935,-717.96206054,0.00013,2]
[342079899,1731415837946,-2385.47819203,0.00013,2]
[342079900,1731415837959,-6889.10128633,0.00013,2]
[342079901,1731415837995,-963.49643265,0.00013,2]
[342079902,1731415838095,-2510.72,0.00013,2]
[342079903,1731415838106,-8752.22233078,0.00013,2]
[342079904,1731415838120,-2525.1,0.00013,2]
[342079905,1731415838131,-1675218.60200223,0.00013,2]
[342079906,1731415838177,-655.6964493,0.00013,2]
[342080049,1731415839755,-1251.56108849,0.00013,2]
[342080051,1731415839766,-706.04,0.00013,2]
[342080057,1731415839818,-1940.79,0.00013,2]
[342080059,1731415839829,-4242.7743432,0.00013,2]
[342080061,1731415839839,-320.28066761,0.00013,2]
[342080067,1731415839889,-1424.94241133,0.00013,2]
[342080073,1731415839935,-3798.43220689,0.00013,2]
[342080075,1731415839946,-4832.22556236,0.00013,2]
[342080076,1731415839957,-9920.5,0.00013,2]
[342080077,1731415839993,-3255.79999998,0.00013,2]
[342080078,1731415840003,-397.63098387,0.00013,2]
[342080079,1731415841527,-11600.0,0.00013,2]
[342080080,1731415841539,-500.0,0.00013,2]
[342080092,1731415842800,-708.35152064,0.00013,2]
[342080094,1731415842812,-381.82056366,0.00013,2]
[342080097,1731415842823,-293.30521316,0.00013,2]
[342080098,1731415842835,-12773.93326483,0.00013,2]
[342080099,1731415842846,-4530.80041332,0.00013,2]
[342080100,1731415842860,-1828.23561476,0.00013,2]
[342080101,1731415842879,-320433.68536029,0.00013,2]
[342080102,1731415842890,-931.13278959,0.00013,2]
[342080103,1731415842901,-523.13279144,0.00013,2]
[342080104,1731415842913,-500.0,0.00013,2]
[342080105,1731415842924,-4182.15930958,0.00013,2]
[342080106,1731415842936,-3172.33565877,0.00013,2]
[342080107,1731415842965,-279.92356222,0.00013,2]
[342080108,1731415842977,-432.0,0.00013,2]
[342080109,1731415842988,-24466.36272987,0.00013,2]
[342080110,1731415843000,-1605.57003,0.00013,2]
[342080111,1731415843028,-20375.25148172,0.00013,2]
[342080112,1731415843049,-2833.13889606,0.00013,2]
[342080113,1731415843060,-448.60442931,0.00013,2]
[342080114,1731415843071,-645.9920254,0.00013,2]
[342080115,1731415843081,-4077.49325047,0.00013,2]
[342080116,1731415843107,-10003.93457314,0.00013,2]
[342080117,1731415843122,-342.76449735,0.00013,2]
[342080118,1731415843168,-715.36994382,0.00013,2]
[342080119,1731415843179,-12175.6,0.00013,2]
[342080120,1731415843190,-1876.6675,0.00013,2]
[342080121,1731415843201,-1040.8063678,0.00013,2]
[342080136,1731415845711,-449634.53501304,0.00013,2]
[342080138,1731415845725,-21081.85992166,0.00013,2]
[342080145,1731415845771,-8710.64912962,0.00013,2]
[342080146,1731415845926,-2825.31225304,0.00013,2]
[342080147,1731415845950,-8051.7920952,0.00013,2]
[342080148,1731415845960,-750.21753882,0.00013,2]
[342080149,1731415845971,-1155.59659,0.00013,2]
[342080150,1731415845983,-6380.0,0.00013,2]
[342080151,1731415846019,-865.95,0.00013,2]
[342080152,1731415846030,-62707.24967027,0.00013,2]
[342080153,1731415846041,-654.90000756,0.00013,2]
[342080154,1731415846132,-1670.06140867,0.00013,2]
[342080157,1731415846145,-14005.86783592,0.00013,2]
[342080159,1731415846157,-995.21147476,0.00013,2]
[342080862,1731415929999,1300.52,0.00010736,2]
[342080863,1731415937505,10000.0,0.0001,2]
[342080864,1731415962882,10000.0,0.00011,2]
[342080867,1731416170394,250.0,0.00012174,2]
[342080868,1731416189221,169.3,0.00012152,2]
[342080869,1731416189294,169.3,0.00012213,2]
[342080870,1731416193542,25269.83,0.00012249,2]
[342080871,1731416195203,200.0,0.00012188,30]
[342080872,1731416195236,200.0,0.00012188,30]
[342080873,1731416195275,200.0,0.00012188,30]
[342080874,1731416195315,200.0,0.00012188,30]
[342080875,1731416195377,200.0,0.00012188,30]
[342080876,1731416202582,1852.42,0.00012175,2]
[342080878,1731416222860,15656.68,0.00012175,2]
[342080879,1731416322485,200.0,0.00012114,30]
[342080880,1731416322539,200.0,0.00012114,30]
[342080881,1731416322565,200.0,0.00012114,30]
[342080882,1731416322610,200.0,0.00012114,30]
[342080883,1731416322650,325.38882095,0.00012114,30]
[342080884,1731416328378,670.97,0.00012065,2]
[342080885,1731416376705,10000.0,0.00012311,2]
[342080886,1731416384369,150.0,0.00012094,2]
[342080889,1731416468374,165.48,0.00012065,2]
[342080890,1731416498743,248.74,0.0001204,2]
[342080891,1731416499424,1000.0,0.0001204,2]
[342080892,1731416501373,151.0,0.00025,120]
[342080893,1731416515394,250.0,0.00012017,2]
[342080894,1731416518849,150.0,0.00012017,2]
[342080896,1731416589491,314.54,0.00012239,2]
[342080898,1731416646413,241.01,0.00012043,2]
[342080899,1731416652459,16416.93056543,0.00012,2]
[342080900,1731416785926,1235.49,9.96e-05,2]
[342080901,1731416786527,1235.49,0.00012224,2]
[342080904,1731416834438,161.9,0.0001189,2]
[342080905,1731416848650,250.0,0.0001189,2]
[342080906,1731416900734,222.0,0.00027,60]
[342080907,1731416906710,2751.0,0.00011901,2]
[342080909,1731416943465,12286.72,0.00011902,2]
[342080938,1731417032032,-22635.85,0.00012329,2]
[342080939,1731417032041,-235.37144839,0.000125,2]
[342080940,1731417032056,-268.87,0.00012527,2]
[342080942,1731417032066,-248.74,0.00012642,2]
[342080944,1731417032075,-426.15960824,0.00012649,2]
[342080946,1731417032085,-152.40507869,0.0001277,2]
[342080948,1731417032094,-1000.0,0.0001277,2]
[342080969,1731417032302,-2500.0,0.0001277,2]
[342080971,1731417032316,-152.40507862,0.00012784,2]
[342080973,1731417032326,-748.05961709,0.00012798,2]
[342080975,1731417032335,-1000.0,0.00012798,2]
[342080977,1731417032345,-333.0,0.00012798,2]
[342080979,1731417032354,-150.0,0.00012798,2]
[342080981,1731417032364,-152.40507862,0.00012799,2]
[342080983,1731417032373,-150.99,0.00012799,2]
[342080985,1731417032383,-4305.74409035,0.00012799,2]
[342080987,1731417032394,-25387.09845962,0.00012799,2]
[342080989,1731417032404,-306.4021,0.000128,2]
[342080991,1731417032413,-60292.73067379,0.000128,2]
[342080997,1731417032459,-718.36574998,0.000128,2]
[342080999,1731417032470,-549.8407,0.000128,2]
[342081000,1731417032509,-7507.500001,0.000128,2]
[342081001,1731417032520,-6452.88806079,0.000128,2]
[342081002,1731417032531,-8610.0,0.000128,2]
[342081003,1731417032542,-454.66831444,0.000128,2]
[342081004,1731417032560,-1000.0,0.000128,2]
[342081005,1731417032570,-152.40507862,0.00012813,2]
[342081006,1731417032579,-152.40507862,0.00012828,2]
[342081007,1731417032589,-152.40507862,0.00012842,2]
[342081008,1731417032598,-152.40507862,0.00012857,2]
[342081009,1731417032608,-72636.85983264,0.0001287,2]
[342081010,1731417035279,-10869.7437,0.0001287,2]
[342081011,1731417035290,-11024.16783684,0.0001287,2]
[342081012,1731417035303,-152.40507862,0.00012871,2]
[342081013,1731417035313,-1220.675,0.00012878,2]
[342081014,1731417035322,-152.40507862,0.00012886,2]
[342081015,1731417035331,-176.104,0.0001289,2]
[342081016,1731417035341,-49695.72480891,0.00012898,2]
[342081035,1731417038046,-3553.00588657,0.00012898,2]
[342081039,1731417038107,-637.42355499,0.00012898,2]
[342081040,1731417038118,-6031.14839506,0.00012898,2]
[342081041,1731417038129,-1983.30327623,0.00012898,2]
[342081042,1731417038140,-1986.84357059,0.00012898,2]
[342081043,1731417038152,-7070.62013251,0.00012898,2]
[342081044,1731417038162,-4785.1032045,0.00012898,2]
[342081045,1731417038174,-3089.84687064,0.00012898,2]
[342081046,1731417038183,-798.45,0.00012898,2]
[342081047,1731417038192,-1000.0,0.00012898,2]
[342081048,1731417038201,-90505.4361,0.00012898,2]
[342081049,1731417038210,-200.0,0.000129,2]
[342081050,1731417038219,-179.38339312,0.000129,2]
[342081051,1731417038228,-4502.3978,0.000129,2]
[342081052,1731417038237,-152.40507862,0.000129,2]
[342081053,1731417038246,-172.43780871,0.000129,2]
[342081054,1731417038255,-1923.0,0.00012906,2]
[342081055,1731417038264,-814.0,0.00012906,2]
[342081056,1731417038273,-3745.0,0.00012906,2]
[342081057,1731417038283,-1259.0,0.00012906,2]
[342081058,1731417038292,-922.0,0.00012906,2]
[342081059,1731417038304,-3487.0,0.00012906,2]
[342081060,1731417038313,-1159.0,0.00012924,2]
[342081061,1731417038322,-3300.48,0.00012924,2]
[342081062,1731417038331,-150.0,0.00012924,2]
[342081063,1731417038340,-11269.27007676,0.00012924,2]
[342081064,1731417038399,-303.97448345,0.00012924,2]
[342081065,1731417038411,-1310.39143979,0.00012924,2]
[342081066,1731417038420,-1233.496,0.00012924,2]
[342081067,1731417038429,-500.0,0.00012973,2]
[342081068,1731417038438,-500.0,0.00012973,2]
[342081069,1731417038447,-500.0,0.00012973,2]
[342081070,1731417038456,-647.1297976,0.0001299,2]
[342081071,1731417038465,-1973.1276295,0.0001299,2]
[342081072,1731417038474,-1000.0,0.00012999,2]
[342081073,1731417038483,-1000.0,0.00012999,2]
[342081074,1731417038492,-34361.65513309,0.00013,2]
[342081075,1731417038567,-1606265.92594034,0.00013,2]
[342081076,1731417038579,-36000.0,0.00013,2]
[342081077,1731417038590,-25800.0,0.00013,2]
[342081079,1731417038662,-1111.9702,0.00013,2]
[342081087,1731417040018,-636.0,0.00013,2]
[342081088,1731417040029,-2610.74943202,0.00013,2]
[342081089,1731417040078,-278.78300298,0.00013,2]
[342081090,1731417040090,-617.80000001,0.00013,2]
[342081091,1731417040102,-432.000004,0.00013,2]
[342081092,1731417040126,-695.3898676,0.00013,2]
[342081102,1731417043073,-7354.36,0.00013,2]
[342081103,1731417043085,-735.915,0.00013,2]
[342081104,1731417043242,-522568.41033517,0.00013,2]
[342081105,1731417043254,-14096.82697822,0.00013,2]
[342081106,1731417043362,-10325.46,0.00013,2]
[342081107,1731417043414,-4932.2326839,0.00013,2]
[342081108,1731417043426,-2995.28333612,0.00013,2]
[342081109,1731417043437,-6768.3564947,0.00013,2]
[342081110,1731417043448,-17598.2499922,0.00013,2]
[342081111,1731417043459,-273.68328915,0.00013,2]
[342081112,1731417043470,-62942.91931556,0.00013,2]
[342081113,1731417043480,-6037.72985488,0.00013,2]
[342081114,1731417043492,-13882.7444978,0.00013,2]
[342081115,1731417043503,-1888.7800085,0.00013,2]
[342081116,1731417043648,-1345.94105241,0.00013,2]
[342081117,1731417043716,-51392.45273755,0.00013,2]
[342081118,1731417043728,-17613.03156499,0.00013,2]
[342081120,1731417043756,-2896.32506679,0.00013,2]
[342081122,1731417043767,-6299.55153439,0.00013,2]
[342081123,1731417043779,-16289.83810515,0.00013,2]
[342081124,1731417043790,-1344.57483035,0.00013,2]
[342081125,1731417043806,-2810.72715859,0.00013,2]
[342081126,1731417043821,-3328.23519937,0.00013,2]
[342081127,1731417043853,-2346.2469668,0.00013,2]
[342081141,1731417045955,-8410.15996591,0.00013,2]
[342081142,1731417045966,-534.8,0.00013,2]
[342081143,1731417045978,-3252.6,0.00013,2]
[342081144,1731417046015,-3213.25981629,0.00012999,2]
[342081145,1731417046025,-1084.44018371,0.00013,2]
[342081146,1731417046094,-379.99141886,0.00012999,2]
[342081147,1731417046104,-290.70626219,0.00013,2]
[342081148,1731417046117,-1600.91635,0.00013,2]
[342081149,1731417046130,-480.930005,0.00013,2]
[342081150,1731417046142,-2792.8709008,0.00013,2]
[342081151,1731417046176,-8579.9316,0.00013,2]
[342081152,1731417046189,-38490.22836752,0.00013,2]
[342081153,1731417046211,-1403.0002,0.00013,2]